Cogmind - Beta 16 @@@ ROGUE MODE // 2025.10.23 @ 15:32:32 Player: GayPredator Result: Destroyed by YI-UF0 with YI-UF0's Doublenader Performance ------------- Evolutions (0) 0 Regions Visited (4) 800 Robots Destroyed (13) 65 Value Destroyed (285) 285 Prototype IDs (25) 500 Alien Tech Used (0) 0 Bonus (381) 381 TOTAL SCORE: 2031 Bonus ------- Follower Combat Kills 81 Aligned with FarCom 300 Cogmind --------- Core Integrity 0/250 Matter 153/300 Energy 90/100 System Corruption 0% Temperature Cool (0) Movement Treading (160) Location -9/Mines Parts ------- > --- POWER (1) -------- (None) > --- PROPULSION (2) --- Light Treads > --- UTILITY (2) ------ (None) > --- WEAPON (2) ------- (None) > --- INVENTORY (5) ---- Sensor Array Terrain Scanner Improved Terrain Scanner Seismic Detector Grenade Launcher Peak State ------------ > --- POWER ------------ Light Nuclear Core > --- PROPULSION ------- Light Treads Light Treads > --- UTILITY ---------- Large Storage Unit Seismic Detector > --- WEAPON ----------- Assault Rifle Light Cannon > --- INVENTORY -------- Light Nuclear Core Light Treads Improved Heat Sink Small Storage Unit Small Matter Pod Sensor Array Terrain Scanner Improved Terrain Scanner Light Armor Plating Light Armor Plating Light Assault Rifle Grenade Launcher Grenade Launcher Mining Laser [Rating: 11] Favorites ----------- Power Ion Engine Engine Ion Engine Power Core Light Nuclear Core Propulsion Light Treads Treads Light Treads Wheel Compact Wheel Utility Large Storage Unit Device Seismic Detector Storage Large Storage Unit Processor Signal Interpreter Protection Light Armor Plating Weapon Assault Rifle Energy Gun Medium Laser Ballistic Gun Assault Rifle Ballistic Cannon Light Cannon Launcher Grenade Launcher Special Weapon Mining Laser Slashing Weapon Mining Claw Build | -11 -10 -10 -10 -9 ------- Run | Yrd Mat Min Exi Min Slots Evolved . | . . . . . Power . | . . . . . Propulsion . | . . . . . Utility . | . . . . . Weapon . | . . . . . Parts Attached 25 | 7 11 2 . 5 Power 4 | 1 1 1 . 1 Engine 2 | 1 1 . . . Core 2 | . . 1 . 1 Reactor . | . . . . . Propulsion 4 | 2 1 . . 1 Treads 3 | 2 . . . 1 Leg . | . . . . . Wheel 1 | . 1 . . . Hover . | . . . . . Flight . | . . . . . Utility 8 | 2 4 . . 2 Device 2 | 1 1 . . . Storage 2 | 1 1 . . . Processor 1 | . 1 . . . Hackware . | . . . . . Protection 3 | . 1 . . 2 Artifact . | . . . . . Weapon 9 | 2 5 1 . 1 Energy Gun 1 | 1 . . . . Energy Cannon . | . . . . . Ballistic Gun 3 | 1 2 . . . Ballistic Cannon 1 | . . 1 . . Launcher 2 | . 1 . . 1 Special Weapon 1 | . 1 . . . Impact Weapon . | . . . . . Slashing Weapon 1 | . 1 . . . Piercing Weapon . | . . . . . Special Melee Weapon . | . . . . . Unidentified Prototypes . | . . . . . Parts Lost 10 | . . . . 10 Power 2 | . . . . 2 Propulsion 2 | . . . . 2 Utility 2 | . . . . 2 Weapon 4 | . . . . 4 Highest Loss Streak 10 | . . . . 10 To Critical Strikes . | . . . . . Average Backups 12 | 2 11 13 14 14 Power . | . 1 1 1 . Propulsion . | . 1 1 1 . Utility 6 | . 5 8 8 8 Weapon 3 | . 4 3 4 3 Tool/Special . | . . . . . Unused Backups 9 | . 2 1 . 6 Power 1 | . . 1 . . Propulsion . | . . . . . Utility 7 | . 1 . . 6 Weapon 1 | . 1 . . . Tool/Special . | . . . . . Average Slot Usage (%) 99 | . 100 99 100 89 Engine 9 | . 14 9 . . Core 3 | . . 3 14 12 Treads 27 | . 27 28 28 24 Device 12 | . 12 14 14 5 Storage 14 | . 14 14 14 14 Ballistic Gun 20 | . 25 14 14 10 Ballistic Cannon 5 | . . 13 14 7 Peak Build Rating 11 | 7 8 11 11 11 Average Rating 8 | 5 7 8 11 10 On Entrance 7 | . 7 8 11 11 Avg Prop Armor Cover (%) 14 | . 14 . . . Naked Turns . | . . . . . Heaviest Build 34 | 12 31 31 31 34 Greatest Support 40 | 40 40 40 40 40 Greatest Overweight (x) 1 | 1 1 . . . Average Overweight (x) . | . . . . . Largest Inventory Capacity 15 | 8 15 15 15 15 Average Capacity 14 | 7 14 15 15 15 Most Carried 15 | 5 15 14 15 15 Average Carried 12 | 2 11 13 14 14 Final Capacity 15 | 8 15 15 15 5 Final Carried 15 | 5 13 14 15 5 Class Distribution -------------------- 100% | Mutant Dominant Class ---------------- Mutant | -10/Materials Mutant | -10/Mines Mutant | -10/Exiles Mutant | -9/Mines Resources | -11 -10 -10 -10 -9 ----------- Run | Yrd Mat Min Exi Min Matter Collected 646 | 277 337 32 . . Remotely . | . . . . . Salvage Created 486 | 184 271 . . 31 Parts 29 | 13 15 . . 1 Haulers Intercepted 1 | . 1 . . . Recyclers Shooed 1 | . 1 . . . Parts Field Recycled . | . . . . . Retrieved Matter . | . . . . . Parts Self-Destructed . | . . . . . Prevented . | . . . . . Parts Restored . | . . . . . Kills | -11 -10 -10 -10 -9 ------- Run | Yrd Mat Min Exi Min Combat Hostiles Destroyed 11 | . 5 . . 6 Guns 5 | . 5 . . . Cannons 1 | . . . . 1 AOE 5 | . . . . 5 Classes Destroyed 7 | 2 3 . . 2 Tunneler 4 | 4 . . . . Hauler 1 | . 1 . . . Recycler 1 | 1 . . . . Watcher 1 | . 1 . . . Grunt 5 | . 5 . . . Demolisher 1 | . . . . 1 Assembled 5 | . . . . 5 Best Kill Streak 6 | 3 2 . . 6 Combat Bots Only 6 | . 2 . . 6 Max Kills in Single Turn 2 | 1 1 . . 2 Gunslinging . | . . . . . Exploded 2 | . . . . 2 Melee . | . . . . . Uniques/NPCs Destroyed . | . . . . . Combat | -11 -10 -10 -10 -9 -------- Run | Yrd Mat Min Exi Min Hostile Shots Fired 86 | . 41 1 . 44 Missed 23 | . 10 . . 13 Hits 63 | . 31 1 . 31 Projectile 63 | . 31 1 . 31 AOE 17 | . . . . 17 Damage Taken 1244 | . 363 16 . 865 Core 251 | . 114 . . 137 Absorbed by Shields . | . . . . . Core Remaining (%) 100 | 100 . . . . Volleys Fired 49 | 7 32 . . 10 Largest 2 | 2 2 . . 2 Hottest 100 | 70 100 . . 60 Shots Fired 93 | 14 62 . . 17 Gun 81 | 14 60 . . 7 Cannon 3 | . . . . 3 Launcher 8 | . 1 . . 7 Special 1 | . 1 . . . Kinetic 74 | 7 57 . . 10 Thermal 11 | 7 4 . . . Explosive 8 | . 1 . . 7 Electromagnetic . | . . . . . Robot Hit Streak 16 | 5 16 . . 4 Robot Miss Streak 3 | 1 2 . . 3 Penetration Max . | . . . . . Secondary Targets . | . . . . . Shots Hit Robots 62 | 9 44 . . 9 Core Hits 38 | 6 15 . . 17 Critical Kills . | . . . . . Critical Parts Destroyed . | . . . . . Critical Strikes . | . . . . . Melee Attacks 2 | . 2 . . . Impact . | . . . . . Slashing 2 | . 2 . . . Piercing . | . . . . . Sneak Attacks 1 | . 1 . . . Combat Hostiles . | . . . . . Follow-up Attacks . | . . . . . Damage Inflicted 1062 | 106 563 . . 393 Guns 621 | 106 467 . . 48 Cannons 55 | . . . . 55 Explosions 321 | . 31 . . 290 Melee 51 | . 51 . . . Ramming 14 | . 14 . . . Kinetic 589 | 32 454 . . 103 Thermal 87 | 74 13 . . . Explosive 321 | . 31 . . 290 Electromagnetic . | . . . . . Impact . | . . . . . Slashing 51 | . 51 . . . Piercing . | . . . . . Highest Corruption . | . . . . . Average Corruption . | . . . . . Corruption Purged . | . . . . . Corruption Blocked . | . . . . . Overload Shots . | . . . . . Overflow Damage . | . . . . . Projectiles . | . . . . . Explosions . | . . . . . Melee . | . . . . . Knockbacks . | . . . . . Impact . | . . . . . Kinetic . | . . . . . Secondary . | . . . . . Self-Inflicted Damage 13 | . . . . 13 Shots 1 | . . . . 1 Rammed 4 | . 4 . . . Targets Rammed 4 | . 4 . . . Kicked . | . . . . . Crushed . | . . . . . Highest Temperature 41 | 40 41 . . 30 Average Temperature 14 | 20 14 . . 8 Received Heat Transfer 207 | . 198 9 . . Siege Activations . | . . . . . Martial Activations . | . . . . . Shielding Activations . | . . . . . Robots Disrupted . | . . . . . Combat Hostiles . | . . . . . Robots Corrupted . | . . . . . Combat Hostiles . | . . . . . Parts Fried . | . . . . . Impact Corruptions . | . . . . . Robots Melted . | . . . . . Combat Hostiles . | . . . . . Parts Melted 1 | 1 . . . . Heat Transferred 259 | 222 37 . . . Parts Sabotaged . | . . . . . Parts Stolen . | . . . . . Parts Stripped . | . . . . . Power Chain Reactions . | . . . . . Alert | -11 -10 -10 -10 -9 ------- Run | Yrd Mat Min Exi Min Maximum Alert Level . | . . . . . Low Security (%) 100 | 100 100 100 . 100 Level 1 . | . . . . . Level 2 . | . . . . . Level 3 . | . . . . . Level 4 . | . . . . . Level 5 . | . . . . . High Security . | . . . . . Max Security . | . . . . . Peak Influence 78 | 15 50 78 . 23 Initial 3 | . 3 . . . Average 12 | 2 8 28 . 3 Influence Increases 388 | 25 183 131 . 49 Destroy 0b10 Robot/C 220 | . 100 100 . 20 Destroy 0b10 Robot/NC 35 | 25 10 . . . Destroy Leader 34 | . 14 20 . . Allied During Kill 11 | . . 11 . . Successful Hack 20 | . 20 . . . Disable Machine 15 | . 15 . . . Destroy Structure 38 | . 9 . . 29 Partial Spotted 15 | . 15 . . . Influence Decreases 388 | 20 188 131 . 49 Entered New Map 2 | . 2 . . . Time Decay 346 | 20 186 131 . 9 Lost Part 20 | . . . . 20 Lost Ally 20 | . . . . 20 Squads Dispatched 2 | . 2 . . . Investigation . | . . . . . Extermination . | . . . . . Reinforcement 2 | . 2 . . . Assault . | . . . . . Garrison . | . . . . . Intercept . | . . . . . Searches Triggered . | . . . . . Construction Impeded . | . . . . . Haulers Reinforced . | . . . . . Active Scanning Responses . | . . . . . Cargo Convoy Interrupts . | . . . . . Stealth | -11 -10 -10 -10 -9 --------- Run | Yrd Mat Min Exi Min Distress Signals 1 | . 1 . . . Communications Jammed . | . . . . . Distress Signals . | . . . . . Times Spotted 44 | . 15 5 . 24 Peak Tracking Total 17 | . 3 3 . 17 Tactical Retreats . | . . . . . Traps | -11 -10 -10 -10 -9 ------- Run | Yrd Mat Min Exi Min Traps Triggered . | . . . . . Indirectly . | . . . . . Trap Hack Attempts . | . . . . . Triggered . | . . . . . Disarmed . | . . . . . Reprogrammed . | . . . . . Reused . | . . . . . Traps Extracted . | . . . . . Installed . | . . . . . Triggered . | . . . . . Machines | -11 -10 -10 -10 -9 ---------- Run | Yrd Mat Min Exi Min Machines Disabled 1 | . 1 . . . Max in Single Turn 1 | . 1 . . . Machines Repaired . | . . . . . Machines Dismantled . | . . . . . Machines Sabotaged . | . . . . . Overloaded Fab Kills . | . . . . . Hacking | -11 -10 -10 -10 -9 --------- Run | Yrd Mat Min Exi Min Machines Accessed 9 | . 6 . 3 . Terminals 6 | . 6 . . . Fabricators . | . . . . . Repair Stations . | . . . . . Recycling Units . | . . . . . Scanalyzers . | . . . . . Garrison Access . | . . . . . Total Hacks 22 | . 19 . 3 . Successful 12 | . 9 . 3 . Failed 10 | . 10 . . . Catastrophic 1 | . 1 . . . Database Lockouts . | . . . . . Manual 19 | . 18 . 1 . Terminals 19 | . 19 . . . Fabricators . | . . . . . Repair Stations . | . . . . . Recycling Units . | . . . . . Scanalyzers . | . . . . . Garrison Access . | . . . . . Terminal Hacks 5 | . 2 . 3 . Record 2 | . . . 2 . Part Schematic 1 | . 1 . . . Prototype ID Bank 1 | . 1 . . . Proto ID Catalog 1 | . . . 1 . Fabricator Hacks . | . . . . . Repair Station Hacks . | . . . . . Recycling Unit Hacks . | . . . . . Scanalyzer . | . . . . . Garrison Access Hacks . | . . . . . Unauthorized Hacks 7 | . 7 . . . Terminals 7 | . 7 . . . Botnet 1 | . 1 . . . Skim 6 | . 6 . . . Fabricators . | . . . . . Repair Stations . | . . . . . Recycling Units . | . . . . . Scanalyzers . | . . . . . Garrison Access . | . . . . . Data Cores Recovered . | . . . . . Used . | . . . . . Hacking Detections 6 | . 6 . . . Full Trace Events . | . . . . . Feedback Events . | . . . . . Feedback Blocked . | . . . . . Robot Schematics Acquired . | . . . . . Robots Built . | . . . . . Authchips . | . . . . . Time . | . . . . . Total Robot Build Rating . | . . . . . Part Schematics Acquired 1 | . 1 . . . Parts Built . | . . . . . Authchips . | . . . . . Time . | . . . . . Total Part Build Rating . | . . . . . Part Studies Acquired . | . . . . . Parts Repaired . | . . . . . Time . | . . . . . Parts Recycled . | . . . . . Recycled Matter . | . . . . . Retrieved Matter . | . . . . . Retrieved Components . | . . . . . Parts Scanalyzed . | . . . . . Part Schematics Acquired . | . . . . . Parts Damaged . | . . . . . Bothacking | -11 -10 -10 -10 -9 ------------ Run | Yrd Mat Min Exi Min Used RIF Installer . | . . . . . Robots Hacked . | . . . . . Non-combat . | . . . . . Combat . | . . . . . Robot Hacks Applied . | . . . . . Relay Couplers Released . | . . . . . Fabnet Peak Effective % . | . . . . . Robots Rewired . | . . . . . Allies Hacked . | . . . . . Hacks Repelled . | . . . . . Allies | -11 -10 -10 -10 -9 -------- Run | Yrd Mat Min Exi Min Total Allies 5 | . . 5 . . Largest Group 3 | . . 3 3 1 Highest-Rated Group 54 | . . 54 54 16 Highest-Rated Ally 31 | . . 31 31 16 Total Orders . | . . . . . Ally Attacks 19 | . . 18 . 1 Total Damage 210 | . . 210 . . Kills 6 | . . 6 . . Allies Corrupted . | . . . . . Allies Melted . | . . . . . Intel | -11 -10 -10 -10 -9 ------- Run | Yrd Mat Min Exi Min Active Infowar (turns) 1787 | 37 1026 322 382 20 Seismic 1787 | 37 1026 322 382 20 Robot Analysis Total . | . . . . . Derelict Logs Recovered 1 | . . 1 . . Drone Launches . | . . . . . Drone Recoveries . | . . . . . Exploration | -11 -10 -10 -10 -9 ------------- Run | Yrd Mat Min Exi Min Turns Passed 1981 | 97 1115 322 382 65 Spaces Moved 968 | 37 493 185 237 16 Core 2 | 2 . . . . Treads 928 | 35 455 185 237 16 Legs . | . . . . . Wheels 38 | . 38 . . . Hover . | . . . . . Flight . | . . . . . Fastest Speed 50 | 50 100 160 160 160 Average Speed 157 | 155 155 160 160 160 Slowest Speed 160 | 160 160 160 160 160 Overloaded Moves . | . . . . . Propulsion Burnouts . | . . . . . Robots Hopped . | . . . . . Potential Cave-ins . | . . . . . Cave-ins Triggered . | . . . . . Exploration Rate (%) 40 | 4 78 48 62 11 Regions Visited 4 Branch Regions 3 Pre-discovered Areas 1 | . . . 1 . Known Exits Taken . | . . . . . Unknown Exits Taken 4 | 1 1 1 1 . Scrap Searched 1 | . . 1 . . Spaces Dug 1 | . 1 . . . Terrain Destroyed 55 | . 8 . . 47 Melee 1 | . 1 . . . Projectile . | . . . . . AOE 54 | . 7 . . 47 Terrain Rammed . | . . . . . Walls Destroyed . | . . . . . Machines Disabled . | . . . . . Actions | -11 -10 -10 -10 -9 --------- Run | Yrd Mat Min Exi Min Total 1324 | 61 775 211 240 37 Wait 229 | 6 199 21 3 . Move 964 | 36 492 184 236 16 Hop . | . . . . . Pick Up 22 | 5 14 2 1 . Fast Attach 11 | 7 3 1 . . Attach 8 | . 3 . . 5 Detach 2 | . 2 . . . Swap 19 | . 13 1 . 5 Drop 14 | . 11 2 . 1 Fire 49 | 7 32 . . 10 Melee 2 | . 2 . . . Ram . | . . . . . Kick . | . . . . . Crush 4 | . 4 . . . Escape Stasis . | . . . . . Rewire . | . . . . . Trap . | . . . . . Miscellaneous . | . . . . . Route ------- -11/Scrapyard -10/Materials (discovered 5 exits: *Mat x3 / [*Min] / Sub) -10/Mines (discovered 3 exits: *Mat / *Exi / Sub) -10/Exiles (discovered 2 exits: [*Min x2]) -9/Mines History --------- Turn | Location | Event 15 | -11/Scrapyard | Discovered new exit (range 15) 98 | -11/Scrapyard | Entered Materials 99 | -10/Materials | Met a group of wandering Federalists 135 | -10/Materials | Discovered new exit (range 8) 258 | -10/Materials | Discovered new exit (range 10) 312 | -10/Materials | Build established: Mutant 696 | -10/Materials | Learned 4 Recycling zone layouts 706 | -10/Materials | Discovered new exit (range 15) 778 | -10/Materials | Learned Storage trap positions 834 | -10/Materials | Discovered new exit (range 13) 852 | -10/Materials | Identified exit to Subcaves 901 | -10/Materials | Identified exit to Materials 1014 | -10/Materials | Loaded intel: 2 recycling unit locations 1198 | -10/Materials | Learned Storage interactive machine intel 1213 | -10/Materials | Entered Mines 1222 | -10/Mines | Met a Derelict bent on vengeance 1223 | -10/Mines | Assisted by bots powering up and referring to "LRC-V3" 1231 | -10/Mines | Discovered exit to Materials (range 10) 1387 | -10/Mines | Learned Materials security intel 1524 | -10/Mines | Deemed a non-threat by the Exiles lab entrance 1524 | -10/Mines | Discovered new exit (range 5) 1535 | -10/Mines | Entered Exiles 1535 | -10/Exiles | Accompanied by 3 allies 1561 | -10/Exiles | Discovered new exit (range 15) 1565 | -10/Exiles | Led the pair of lost Derelicts to a safe place 1575 | -10/Exiles | Met 8R-AWN 1598 | -10/Exiles | Met EX-HEX 1649 | -10/Exiles | Met EX-BIN 1671 | -10/Exiles | Aligned with FarCom system 1673 | -10/Exiles | Given EX-Vault access code 1711 | -10/Exiles | Opened EX-Vault 1723 | -10/Exiles | Found 0b10 Alert Chip 1778 | -10/Exiles | Warned to stay clear of 0b10 Research branches 1836 | -10/Exiles | Learned location of Zion (-7) 1837 | -10/Exiles | Met EX-DEC 1893 | -10/Exiles | Discovered new exit (range 14) 1917 | -10/Exiles | Left Exiles lab with 0b10 Alert Chip 1917 | -10/Exiles | Entered Mines 1917 | -9/Mines | Accompanied by 1 ally 1934 | -9/Mines | Assembled infested the area 1939 | -9/Mines | Assisted by a Guerilla fighting off Assembled 1946 | -9/Mines | YI-UF0 nonchalantly dropped a Grenade Launcher on the ground 1961 | -9/Mines | Core integrity fell below 50% 1975 | -9/Mines | Core integrity fell below 20% 1982 | -9/Mines | Destroyed by YI-UF0 with YI-UF0's Doublenader Last Messages --------------- 01968_ D-53 Grenadier destroyed. 01969_ The unstable cave ceiling collapses. 01969_ K-01 Serf collects debris. 01970_ The unstable cave ceiling collapses. 01970_ K-01 Serf destroyed. 01970_ YI-UF0: "BWOOM!" 01970_ K-01 Serf destroyed. 01971_ The unstable cave ceiling collapses. 01973_ Grenade Launcher destroyed. 01974_ The unstable cave ceiling collapses. 01975_ Assault Rifle destroyed. 01976_ The unstable cave ceiling collapses. 01977_ YI-UF0 mumbles something. 01977_ The unstable cave ceiling collapses. 01980_ U-05 Engineer builds a Wall. 01980_ Lgt. Nuclear Core destroyed. 01981_ The unstable cave ceiling collapses. 01982_ Lgt. Armor Plating destroyed. 01982_ Dropped Lrg. Storage Unit. 01982_ Lgt. Assault Rifle destroyed. Map ----- +----------------------------------------------------+ | ?????????????????????????????????????????????????? | | ?????????????????????????????????????????????????? | | ?????????????????????????????????????????????????? | | ?????????????????????????????????????????????????? | | ?????????????????????????????????????????????????? | | ?????????????????????????????????????????????????? | | ?????????????????????????????????????????????????? | | ?????????????????????????????????????????????????? | | ?????????????????????????? ??????????????????????? | | ?????????????????????????? ??????????????????????? | | ?????????????????????????? ??????????????????????? | | ?????????????????????????# ##????????????????????? | | ????????????????????????? #????????????????????? | | ????????????????????????? ##??? ??????????????? | | ???????????????????????### ####u#??????????????? | | ??????????? ?????????## # # ???????????????? | | ???????????? ????????# =????????????????? | | ?????????????# ?????## ! #????????????????? | | ????????????## ????# #????????????????? | | ?????????#### #### ##???????????????? | | ????????? # # #???????????????? | | ???????? # # # g= % #????????????????? | | ????????% aa % #??????????????????? | | ????????"" #??????????????????? | | ??????????# # !! ###?????????????????? | | ??????????# # |@! #?????????????????? | | ??????????## # !# ####??????????????? | | ?????????????# ##### ########???????? | | ???????????????????# # #??????? | | ???????????????????# ##??????? | | ???????????????????# # # #### #???????? | | ???????????????????###### # #????????????? | | ????????????????????????######## ##????????????? | | ???????????????????????????????#####?????????????? | | ?????????????????????????????????????????????????? | | ?????????????????????????????????????????????????? | | ?????????????????????????????????????????????????? | | ?????????????????????????????????????????????????? | | ?????????????????????????????????????????????????? | | | | | | | | | | | | | | | | | | | | | | | +----------------------------------------------------+ Best States ------------- Heat Dissipation 25 Energy Generation 14 Energy Capacity 250 Matter Stores 300 Matter Capacity 300 Sight Range 16 Terrain Scan Density 10 Armor Coverage 150 Evasion (%) 40 Recoil Reduction 2 Item Schematics ----------------- Lgt. Treads | -10/Materials | Hacked Robot Schematics ------------------ None Fabricated ------------ Nothing Repaired ---------- Nothing Studied --------- None Alien Tech Used ----------------- None Achievements -------------- Sixth Sense Challenges ------------ None Game ------ Seed GuidanceThermalTrident Manual? 0 Play Time 00:17:54 Cumulative 200.3 hours Start 2025.10.23 @ 15:16:43 End 2025.10.23 @ 15:32:32 Sessions 1 Manual Loads 0 Difficulty Rogue Special Mode None Game No. 187 Rogue 148 Adventurer 32 Explorer 7 Win Type - Total 3 Types 3/0/0/0/0/0/0/0/0/0 Lore% 52 Gallery% 64 Achievement% 33 Wizard Run 0 Options --------- Layout 1 ASCII 0 Keyboard 0 Movement Numpad Keybinds 0 Fullscreen 1 Font 24/Smallcaps Map View 50x35 Zoom Use 0% Tactical HUD 1 Map Filters NONE Filters NONE Steam 1 RUN: 6749fafb-5e98-4fda-b56c-8a47d96a8076